[Event "4NCL 2023-2024"]
[Site "Daventry"]
[Date "2024.05.04"]
[Round "9.24"]
[White "Kalaiyalahan, Akshaya"]
[Black "Garcia Martin, Marta"]
[Result "1-0"]
[ECO "B37"]
[WhiteElo "2148"]
[BlackElo "2342"]
[Annotator "TA"]
[PlyCount "111"]
[EventDate "2023.11.11"]
[EventType "team-tourn"]
[EventCountry "ENG"]
[SourceTitle "playchess.com"]
[Source "ChessBase"]
[SourceQuality "1"]
[TimeControl "40/6000+30:3000+30"]

{[%evp 12,111,-26,-32,25,24,12,18,47,61,66,53,67,47,54,41,48,41,34,51,61,0,0,0,0,-56,-63,-60,-47,-53,-54,-64,-66,-60,-42,-40,62,65,33,0,0,0,5,0,0,0,19,0,40,0,135,54,55,50,136,126,320,62,183,-2747,14,0,946,181,265,243,267,186,258,91,264,249,288,280,231,226,224,214,238,249,232,199,203,214,377,377,585,546,538,379,683,282,392,366,1137,1026,29977,29978,29978,29965,29985,29986]} 1. Nf3 {[%emt 0:00:03]} g6 {[%emt 0:00:43]} 2. d4 {[%emt 0:00:26]} Bg7 {[%emt 0:00:07]} 3. c4 {[%emt 0:00:25]} c5 {[%emt 0:00:59]} 4. Nc3 {[%emt 0:01:02]} cxd4 {[%emt 0:01:15]} 5. Nxd4 {[%emt 0:00:11]} Nc6 {[%emt 0:00:04]} 6. Nb3 {[%emt 0:02:58]} d6 {[%emt 0:02:26]} 7. e4 {[%emt 0:01:33]} a5 {[%emt 0:17:56]} (7... Bxc3+ $15 8. bxc3 Nf6) 8. Be3 $11 {[%emt 0:04:19]} a4 {[%emt 0:06:19]} 9. Nd4 {[%emt 0:00:06]} a3 {[%emt 0:00:04] The position is equal.} 10. b3 {[%emt 0:03:21]} Nh6 {[%emt 0:07:27]} 11. Be2 {[%emt 0:04:09] Prevents Ng4.} f5 {[%emt 0:12:54][%cal Of5f4]} 12. Rc1 {[%emt 0:16:19]} O-O {[%emt 0:08:52]} 13. O-O {[%emt 0:09:26]} f4 {[%emt 0:03:20]} 14. Nxc6 {[%emt 0:00:07]} bxc6 {[%emt 0:00:04]} 15. Bd2 {[%emt 0:00:05]} g5 {[%emt 0:01:47]} 16. f3 {[%emt 0:02:56]} (16. c5 $14) 16... Bd4+ {[%emt 0:03:37]} 17. Kh1 {[%emt 0:00:10][%cal Oc4c5]} e5 $36 {[%emt 0:00:16][%mdl 2048] Black is pushing.} 18. Na4 {[%emt 0:07:21]} (18. c5 $11) 18... c5 $15 {[%emt 0:11:58]} 19. Nc3 {[%emt 0:00:43]} Ra7 {[%emt 0:02:14][%cal Og5g4]} 20. Nb5 {[%emt 0:02:14]} Rg7 {[%emt 0:00:05]} 21. Nxd4 {[%emt 0:02:17]} exd4 {[%emt 0:00:23]} 22. b4 {[%emt 0:08:06]} Be6 {[%emt 0:22:33]} 23. Qa4 {[%emt 0:02:34]} Qa8 {[%emt 0:02:35]} (23... Nf7 $15) 24. Qxa8 $14 {[%emt 0:09:01]} Rxa8 {[%emt 0:00:03]} 25. g3 {[%emt 0:04:00]} (25. h4 $5 gxh4 26. bxc5 dxc5 27. Bxf4 $16) 25... fxg3 {[%emt 0:00:19]} 26. hxg3 {[%emt 0:00:05]} Nf7 {[%emt 0:00:08]} 27. f4 {[%emt 0:01:42] Against Ne5} Re8 {[%emt 0:00:53]} 28. Bf3 {[%emt 0:07:06]} Bh3 {[%emt 0:02:48]} 29. Rfe1 {[%emt 0:01:10][%cal Oe4e5]} Re6 {[%emt 0:02:01]} 30. bxc5 {[%emt 0:05:39]} (30. e5 $5 gxf4 31. Bd5 dxe5 (31... Rxe5 32. bxc5 Rxe1+ 33. Rxe1 $18) 32. Bxe6 Bxe6 33. Bxf4 $16 (33. gxf4 Bd7 $14)) 30... dxc5 {[%emt 0:00:42]} (30... gxf4 $11 {keeps the balance.} 31. e5 Rxg3 (31... Rxe5 $2 32. Bxf4 d3 33. cxd6 $18)) 31. e5 {[%emt 0:05:08]} (31. Rb1 $1 $16 {[%cal Rb1b8] Rb8+ would now be deadly.} Re8 32. e5) 31... gxf4 {[%emt 0:00:14]} 32. Bxf4 {[%emt 0:00:07] Threatens to win with Rb1.} Rb6 {[%emt 0:00:40]} (32... Bf5 $14) 33. Rb1 $1 $16 {[%emt 0:00:22]} Rgg6 {[%emt 0:00:40]} (33... Rxb1 $16 34. Rxb1 Rg6) 34. Be4 $2 {[%emt 0:03:03]} (34. Rxb6 $1 $18 Rxb6 35. g4) 34... Rxb1 {[%emt 0:00:29] [#]} ({Black should play} 34... Rb2 $1 $14) 35. Rd1 $4 {[%emt 0:09:46][%mdl 8192] [#]} Rc1 $2 36. Rxc1 {[%emt 0:00:00][%cal Oc1b1] Strongly threatening Rb1!} Rc6 $2 {[%emt 0:01:35][%mdl 8192] Black is now going downhill.} 37. Rb1 $2 (37. Bxc6 Nd8 38. Bd5+ Ne6 39. Rb1) 37... Ra6 {[%emt 0:00:00]} (37... Re6 $142) 38. Bd5 $18 {[%emt 0:00:00] And now Rb8+ would win. This pair of bishops is nice.} Be6 {[%emt 0:00:00]} 39. Rb5 {[%emt 0:00:00]} d3 {[%emt 0:00:29]} (39... Kg7 $142 40. Kg2 (40. Rxc5 Kg6 $16) 40... Kg6) 40. Rxc5 $2 {[%emt 0:00:00]} (40. Kg2 $18 {has better winning chances.}) 40... d2 $2 {[%emt 0:00:50]} 41. Bxd2 {[%emt 0:49:38]} Bxd5+ {[%emt 0:50:35]} 42. Rxd5 {[%emt 0:00:32][%mdl 4096] Endgame. KRB-KRN} Kf8 {[%emt 0:00:32]} 43. Bb4+ {[%emt 0:01:58]} Ke8 {[%emt 0:00:03]} 44. Kg2 {[%emt 0:00:00]} Ra4 {[%emt 0:00:00]} 45. Rb5 {[%emt 0:00:00] aiming for e6.} Nd8 {[%emt 0:00:00]} 46. Rb6 {[%emt 0:00:00] Hoping for e6.} Kd7 {[%emt 0:00:00] [#]} 47. c5 $1 {[%emt 0:00:00]} h5 $2 {[%emt 0:00:00]} (47... h6 {was called for.} 48. Bc3 (48. Rd6+ Ke8 $18) 48... Re4 49. Rd6+ (49. Rxh6 Rc4 $18) 49... Ke7) 48. Kh3 {[%emt 0:00:00]} (48. Rd6+ Kc7 $16) 48... Ne6 {[%emt 0:00:00]} (48... Kc8 $142 49. Kh4 Kc7) 49. Kh4 {[%emt 0:00:00]} Nxc5 {[%emt 0:00:00]} 50. Kxh5 {[%emt 0:00:00]} Ne4 {[%emt 0:00:00]} (50... Ne6 51. Kh6 Kc8) 51. Be1 {[%emt 0:00:00]} (51. e6+ $142 Kc7 52. Rb5) 51... Rc4 {[%emt 0:00:00]} 52. e6+ {[%emt 0:00:00]} Ke8 $2 {[%emt 0:00:00]} (52... Kc7) 53. Bb4 {[%emt 0:00:06] Rb8+ would kill now.} Nxg3+ {[%emt 0:00:00]} 54. Kg6 {[%emt 0:00:57] White mates.} Rg4+ {[%emt 0:03:04]} 55. Kf6 {[%emt 0:00:14][%cal Rb6b8]} Nh5+ {[%emt 0:01:01]} 56. Ke5 {[%emt 0:00:28] Weighted Error Value: White=0.51/Black=0.71.  Loses game:     	---       	Black=2      Missed win:     	White=3     	Black=1      Mistake:       	White=5     	Black=10     Inaccurate:     	White=3     	Black=4      OK:         	White=11    	Black=15     Best:        	White=7     	---        Strong:       	White=2     	---} 1-0

[Event "4NCL 2023-2024"]
[Site "Daventry"]
[Date "2024.05.04"]
[Round "9.25"]
[White "Gormally, Daniel W"]
[Black "Pein, Malcolm"]
[Result "1-0"]
[ECO "C88"]
[WhiteElo "2419"]
[BlackElo "2272"]
[Annotator "TA"]
[PlyCount "79"]
[EventDate "2023.11.11"]
[EventType "team-tourn"]
[EventCountry "ENG"]
[SourceTitle "playchess.com"]
[Source "ChessBase"]
[SourceQuality "1"]
[TimeControl "40/6000+30:3000+30"]

{[%evp 23,79,15,21,0,18,0,16,11,14,-17,4,12,19,18,12,15,33,32,26,0,0,19,144,149,239,267,220,240,272,275,282,284,334,326,354,359,334,314,439,422,445,318,353,369,359,370,877,854,879,839,1673,1618,1294,681,704,665,652,618]} 1. e4 {[%emt 0:00:03]} e5 {[%emt 0:00:22]} 2. Nf3 {[%emt 0:00:43]} Nc6 {[%emt 0:00:05]} 3. Bb5 {[%emt 0:00:59][%cal Bf1b5,Bb5a4,Ba4b3,Bb3a2][%mdl 32]} a6 {[%emt 0:00:26]} 4. Ba4 {[%emt 0:00:37]} Nf6 {[%emt 0:00:08]} 5. O-O {[%emt 0:00:55]} Be7 {[%emt 0:00:15]} 6. Re1 {[%emt 0:01:22]} b5 {[%emt 0:00:19]} 7. Bb3 {[%emt 0:00:05]} O-O {[%emt 0:00:06]} 8. d3 {[%emt 0:01:17]} Bb7 {[%emt 0:02:14]} 9. a4 {[%emt 0:02:02]} d6 {[%emt 0:03:03]} 10. Nc3 {[%emt 0:06:48]} Na5 {[%emt 0:04:25]} 11. Ba2 {[%emt 0:00:57]} b4 {[%emt 0:00:15]} 12. Ne2 {[%emt 0:03:28]} c5 {[%emt 0:00:26]} 13. Bd2 {[%emt 0:07:55]} Nc6 {[%emt 0:04:52]} 14. Ng3 {[%emt 0:01:27]} Bc8 {[%emt 0:08:20]} 15. c3 {[%emt 0:04:21] The position is equal.} Rb8 {[%emt 0:02:42]} 16. Bc4 {[%emt 0:10:33][%cal Od3d4]} Na5 {[%emt 0:12:49]} 17. cxb4 {[%emt 0:01:58]} Nxc4 {[%emt 0:00:06]} 18. dxc4 {[%emt 0:00:04] bxc5 would now be deadly.} cxb4 {[%emt 0:00:07]} 19. a5 {[%emt 0:04:45]} Qc7 {[%emt 0:24:55]} 20. b3 {[%emt 0:01:29]} Bd7 {[%emt 0:01:08]} 21. h3 {[%emt 0:11:10]} Bc6 {[%emt 0:02:30]} 22. Bg5 {[%emt 0:00:35]} Qb7 {[%emt 0:02:01] [#] Black is now going downhill.} (22... g6 $11 {remains equal.}) 23. Nf5 $1 $16 {[%emt 0:02:59]} Rfe8 {[%emt 0:06:22]} (23... Qc7 $16 24. Qd3 (24. Bxf6 Bxf6 25. Re2 Rfd8 $11) 24... Kh8 25. Bxf6 Bxf6) 24. Bxf6 $18 {[%emt 0:02:55]} (24. Nxd6 Bxd6 25. Bxf6 Bc7 $17) 24... Bxf6 {[%emt 0:01:45][%cal Be7f6,Bf6d8,Bd8c7][%mdl 32]} 25. Nxd6 {[%emt 0:00:23] Excellent horsemanship.} Qa8 {[%emt 0:00:34]} 26. Nxe8 {[%emt 0:02:09]} Rxe8 {[%emt 0:00:31]} 27. Qd3 {[%emt 0:00:51]} Bd8 {[%emt 0:01:04]} 28. c5 {[%emt 0:05:50]} Bc7 {[%emt 0:06:58]} 29. Qc4 {[%emt 0:00:39]} Qb7 {[%emt 0:01:34]} 30. Red1 {[%emt 0:02:37]} h6 {[%emt 0:02:42]} 31. Nh4 {[%emt 0:04:53]} g6 {[%emt 0:12:18]} 32. Rd5 {[%emt 0:05:35]} Re6 {[%emt 0:00:27] [#]} 33. Nf3 $1 {[%emt 0:02:08][%cal Bh4f3,Bf3e5,Be5d3][%mdl 32]} Rf6 {[%emt 0:03:04]} 34. Rad1 {[%emt 0:03:25][%cal Ba1d1,Bd1d5,Bd5a5,Ba5c5][%mdl 32]} Rf4 $2 {[%emt 0:04:54]} (34... Re6 35. Rd6 Bxd6) 35. Nxe5 {[%emt 0:04:28] White is clearly winning.} Bxd5 {[%emt 0:00:34]} 36. Rxd5 {[%emt 0:00:45]} Bxa5 {[%emt 0:01:41] Black is weak on the light squares} 37. c6 {[%emt 0:03:26]} Qb6 {[%emt 0:01:01]} 38. Nd3 {[%emt 0:01:54] Active counter play!} Rf6 {[%emt 0:00:10] [#]} 39. Rxa5 $1 {[%emt 0:00:36][%mdl 512] White threatens c7 and mate.} Rxc6 {[%emt 0:02:01]} 40. Rc5 {[%emt 0:01:54] Weighted Error Value: White=0.41/Black=0.34.  Mistake:       	---       	Black=3      Inaccurate:     	White=1     	Black=1      OK:         	White=11    	Black=6      Best:        	White=3     	---        Strong:       	White=1     	---} 1-0

[Event "4NCL 2023-2024"]
[Site "Daventry"]
[Date "2024.05.04"]
[Round "9.26"]
[White "Horton, Jamie A"]
[Black "Ansell, Simon T"]
[Result "1/2-1/2"]
[ECO "D10"]
[WhiteElo "2183"]
[BlackElo "2333"]
[Annotator "TA"]
[PlyCount "98"]
[EventDate "2023.11.11"]
[EventType "team-tourn"]
[EventCountry "ENG"]
[SourceTitle "playchess.com"]
[Source "ChessBase"]
[SourceQuality "1"]
[TimeControl "40/6000+30:3000+30"]

{[%evp 9,98,0,2,0,11,0,8,6,4,4,4,7,21,0,0,-25,-27,-31,0,-7,0,-10,-11,-12,-16,-24,-26,-29,-35,-56,-58,-55,-52,-70,-92,-108,-117,-112,0,-21,-14,-71,-68,-52,-47,-71,-49,-22,-19,-71,-71,-82,-68,-68,-68,-62,-75,-77,-52,-93,-12,-79,-9,-116,-114,-100,-108,-98,-113,-100,-108,-91,-80,-79,-81,-76,-85,-118,-118,-104,-104,-113,-178,-377,-351,-982,-973,-802,0,0,0]} 1. d4 {[%emt 0:01:11]} d5 {[%emt 0:00:20]} 2. c4 {[%emt 0:00:17]} c6 {[%emt 0:00:08]} 3. cxd5 {[%emt 0:00:30]} cxd5 {[%emt 0:00:07]} 4. Bg5 {[%emt 0:00:18]} f6 {[%emt 0:14:42]} 5. Bd2 {[%emt 0:01:09]} Nc6 {[%emt 0:00:21]} 6. Nc3 {[%emt 0:11:40]} e5 {[%emt 0:09:53]} 7. e4 {[%emt 0:16:03]} dxe4 {[%emt 0:04:18]} 8. dxe5 {[%emt 0:01:31]} fxe5 {[%emt 0:01:20]} 9. Bc4 {[%emt 0:16:54][%cal Og1h3]} Nf6 {[%emt 0:01:23]} 10. Nge2 {[%emt 0:07:05]} Bc5 {[%emt 0:12:43]} 11. h3 {[%emt 0:21:33] Prevents Ng4.} Bf5 {[%emt 0:12:57]} 12. Bg5 {[%emt 0:10:21]} Qxd1+ {[%emt 0:10:52]} 13. Rxd1 {[%emt 0:00:23]} Rc8 {[%emt 0:00:59]} 14. Ng3 {[%emt 0:02:59]} Bg6 {[%emt 0:03:52]} 15. Be6 {[%emt 0:03:17]} Rd8 {[%emt 0:02:34]} 16. Rxd8+ {[%emt 0:02:44]} (16. Nf5 {keeps more tension.} Kf8 17. Rxd8+ Nxd8 18. Bc8) 16... Nxd8 {[%emt 0:00:21]} 17. Bb3 {[%emt 0:00:49]} Nc6 {[%emt 0:05:18][%cal Bd8c6,Bc6d4,Bd4f5][%mdl 32]} 18. O-O {[%emt 0:01:43]} Nd4 {[%emt 0:02:00]} 19. Ba4+ {[%emt 0:01:28]} Kf7 {[%emt 0:00:21]} 20. Re1 {[%emt 0:00:49][%cal Rc3e4]} h6 {[%emt 0:02:17]} 21. Bh4 {[%emt 0:03:47][%cal Rg3e4]} Bb4 {[%emt 0:06:44]} 22. a3 {[%emt 0:01:44]} Bxc3 {[%emt 0:00:21]} 23. bxc3 {[%emt 0:00:02]} Nf5 {[%emt 0:01:08]} ({Black should try} 23... Ne6 $17 24. Bc2 Rc8 25. Nxe4 Nxe4 26. Bxe4 Bxe4 (26... Rxc3 27. Bxb7 Rc5 28. Rd1 $11) 27. Rxe4 Rxc3) 24. Bb3+ {[%emt 0:01:21]} Ke7 {[%emt 0:00:17]} 25. Bxf6+ {[%emt 0:00:23]} (25. Nxf5+ $11 Bxf5 26. Bg3) 25... gxf6 $17 {[%emt 0:00:08]} 26. Nxe4 {[%emt 0:01:21][%cal Of2f4]} Rc8 {[%emt 0:03:26]} 27. Bd5 {[%emt 0:01:59]} Nd6 {[%emt 0:01:39]} 28. Nxd6 {[%emt 0:00:33]} Kxd6 {[%emt 0:00:06]} 29. Bxb7 {[%emt 0:00:26]} (29. Rd1 $11 Ke7 (29... Rxc3 $2 {too greedy.} 30. Be4+ Kc5 31. Bxg6 $18) 30. c4) 29... Rxc3 $15 {[%emt 0:00:09][%mdl 4096] Endgame. KRB-KRB} 30. Ra1 {[%emt 0:00:33]} Kc5 {[%emt 0:01:36]} 31. Ba6 {[%emt 0:00:23]} Be4 {[%emt 0:02:28]} 32. h4 {[%emt 0:00:39]} Bc6 {[%emt 0:00:23]} 33. Kh2 {[%emt 0:00:25]} f5 {[%emt 0:01:28]} 34. f3 {[%emt 0:00:32]} f4 {[%emt 0:00:52]} (34... e4 $17 35. fxe4 fxe4) 35. Kg1 {[%emt 0:00:25]} (35. a4 $1 $11 {keeps the balance.}) 35... Bd5 {[%emt 0:03:19]} (35... Kb6 $17 36. Bc8 Bxf3 37. Rb1+ Kc7 38. gxf3 Kxc8) 36. Kf2 {[%emt 0:00:37]} (36. a4 $1 $11) 36... Rc2+ $17 {[%emt 0:00:30]} 37. Kg1 {[%emt 0:00:22]} e4 $1 {[%emt 0:01:04]} 38. fxe4 {[%emt 0:00:19]} Bxe4 {[%emt 0:00:07]} 39. Bf1 {[%emt 0:00:07]} a5 {[%emt 0:01:01]} 40. Re1 {[%emt 0:01:14]} Kd4 {[%emt 0:01:57] aiming for ...Ra2.} 41. Rd1+ {[%emt 0:06:53] [#]} Ke5 $1 {[%emt 0:02:42]} 42. Rd8 {[%emt 0:19:20]} Ra2 {[%emt 0:00:49][%cal Oa2a1]} 43. Rh8 {[%emt 0:00:32]} Rxa3 {[%emt 0:00:49] Threatens to win with ...Ra1.} 44. Rxh6 {[%emt 0:25:49]} Ra1 {[%emt 0:00:44]} 45. Kf2 {[%emt 0:00:00]} a4 {[%emt 0:01:23] ...Bd5 would now be deadly.} 46. Rh5+ $2 {[%emt 0:00:00]} (46. Rb6) 46... Kd4 $19 {[%emt 0:02:14] Hoping for ...Bd5.} 47. Be2 $2 {[%emt 0:00:00]} (47. Ra5 Ra2+ 48. Be2) 47... Ra2 {[%emt 0:02:40] Strongly threatening ...Bd3.} 48. Rh8 {[%emt 0:00:00] [#]} Bxg2 $2 {[%emt 0:02:07]} 49. Kxg2 $11 {[%emt 0:00:00] Kf3 is the strong threat.} Rxe2+ {[%emt 0:00:08] Weighted Error Value: White=0.30/Black=0.21 (precise) .  Mistake:       	White=6     	Black=3      Inaccurate:     	White=2     	Black=1      OK:         	White=10    	Black=12     Best:        	White=5     	Black=8      Strong:       	---       	Black=2} 1/2-1/2

[Event "4NCL 2023-2024"]
[Site "Daventry"]
[Date "2024.05.04"]
[Round "9.27"]
[White "Ledger, Andrew J"]
[Black "Hoffmann, Hendrik"]
[Result "1-0"]
[ECO "A65"]
[WhiteElo "2335"]
[BlackElo "2231"]
[Annotator "TA"]
[PlyCount "135"]
[EventDate "2023.11.11"]
[EventType "team-tourn"]
[EventCountry "ENG"]
[SourceTitle "playchess.com"]
[Source "ChessBase"]
[SourceQuality "1"]
[TimeControl "40/6000+30:3000+30"]

{[%evp 40,135,107,70,103,24,28,30,11,7,7,14,10,-29,-8,-16,-13,-11,0,0,0,0,0,0,0,0,0,0,160,155,308,289,530,509,453,456,474,481,432,437,425,393,426,418,530,531,655,636,677,607,636,633,717,683,803,807,770,747,680,643,742,741,741,714,864,852,916,912,1051,1025,1173,1136,1135,1045,1303,1178,1440,1458,1344,1192,1393,1333,1839,1546,1909,1828,7120,4805,29986,29987,29986,29984,29984,29985,29985,29986,29986,29987]} 1. d4 {[%emt 0:00:04]} Nf6 {[%emt 0:00:22]} 2. c4 {[%emt 0:00:24]} g6 {[%emt 0:00:17]} 3. Nc3 {[%emt 0:00:29]} Bg7 {[%emt 0:00:26]} 4. e4 {[%emt 0:00:12]} d6 {[%emt 0:00:15]} 5. f3 {[%emt 0:00:29]} O-O {[%emt 0:00:36]} 6. Bg5 {[%emt 0:00:05]} c5 {[%emt 0:02:21]} 7. d5 {[%emt 0:00:06]} h6 {[%emt 0:00:30]} 8. Be3 {[%emt 0:00:29]} e6 {[%emt 0:01:03]} 9. Qd2 {[%emt 0:00:33]} exd5 {[%emt 0:06:55]} 10. cxd5 {[%emt 0:00:11]} a6 {[%emt 0:00:34]} 11. a4 {[%emt 0:00:59]} Re8 {[%emt 0:02:31]} 12. Bd3 {[%emt 0:05:18]} Nbd7 {[%emt 0:04:18]} 13. Be2 {[%emt 0:00:43]} Ne5 {[%emt 0:04:05]} 14. Bxh6 {[%emt 0:03:05]} Qa5 {[%emt 0:34:03]} 15. Bxg7 {[%emt 0:11:29]} Kxg7 {[%emt 0:00:27]} 16. g4 {[%emt 0:25:22]} b5 {[%emt 0:03:07]} 17. Nd1 {[%emt 0:08:11]} b4 {[%emt 0:07:11]} 18. Nf2 {[%emt 0:22:20]} c4 {[%emt 0:10:14]} 19. Qd4 {[%emt 0:07:46]} Bd7 {[%emt 0:07:52]} 20. Ngh3 {[%emt 0:08:09]} Kg8 {[%emt 0:07:21]} (20... Bxa4 $2 21. f4 $18 (21. Bxc4 $2 Nxf3+ 22. Kf1 Nxd4 $19)) (20... Qxd5 $11 {keeps the balance.} 21. Qxd5 Nxd5 22. exd5 Nd3+ 23. Kf1) 21. O-O $1 $16 {[%emt 0:01:09]} Rac8 $1 {[%emt 0:03:29]} 22. g5 {[%emt 0:01:07]} (22. Rfc1 $16) 22... Nh5 $11 {[%emt 0:01:34]} 23. f4 {[%emt 0:00:57]} Nd3 {[%emt 0:00:35]} 24. Bxd3 {[%emt 0:04:22]} cxd3 {[%emt 0:00:16]} 25. Qxd3 {[%emt 0:00:07]} Qc5 {[%emt 0:03:09]} 26. Kg2 {[%emt 0:04:18]} Qc2 {[%emt 0:00:54]} 27. Qxc2 {[%emt 0:00:35]} (27. Qxa6 $2 Rxe4 (27... Qxb2 $2 28. Ng1 $19) 28. Ng1 Nxf4+ (28... Qxb2 $2 29. Qxd6 Nxf4+ 30. Kh1 $19) 29. Kh1 Bf5 30. Qxd6 Rec4 $19 (30... Qxb2 $2 31. Rab1 $19)) 27... Rxc2 {[%emt 0:00:06]} 28. Kf3 {[%emt 0:00:26]} Bxh3 {[%emt 0:00:35]} (28... Rxb2 {feels hotter.} 29. Nd3 Rxh2 30. Nhf2 a5) 29. Nxh3 {[%emt 0:00:05]} Rxh2 {[%emt 0:00:13]} 30. Nf2 {[%emt 0:00:11]} Rh4 $1 {[%emt 0:00:33]} 31. Rac1 {[%emt 0:03:16]} (31. Ng4 $2 Rh3+ 32. Kf2 Rxe4 (32... Nxf4 $2 33. Nf6+ Kf8 34. Nxe8 $18) 33. Nf6+ Nxf6 $19) 31... Rxf4+ {[%emt 0:01:16]} 32. Ke3 {[%emt 0:00:35]} Rf5 $1 {[%emt 0:02:14]} 33. Ng4 {[%emt 0:01:16]} Rxg5 $2 {[%emt 0:02:53]} (33... Rxd5 $2 {is the wrong capture.} 34. Nh6+ Kh8 35. Rxf7 $18 (35. Rc7 Rc5 $18)) (33... Kg7 $1 $11 34. Rxf5 gxf5) 34. Nh6+ $16 {[%emt 0:00:27]} Kg7 $2 {[%emt 0:00:10]} (34... Kh7 $16 {was worth a try.} 35. Nxf7 Rxd5) 35. Nxf7 $18 {[%emt 0:00:05]} Rg3+ $2 {[%emt 0:00:07]} (35... Rxd5 {keeps fighting.} 36. Rc7 Ng3) 36. Kd4 $18 {[%emt 0:00:12]} Re7 {[%emt 0:02:24]} 37. Nxd6 {[%emt 0:00:03]} Rg4 {[%emt 0:00:07]} 38. Rc6 {[%emt 0:00:28]} a5 {[%emt 0:02:42]} 39. Re1 {[%emt 0:01:04]} Nf4 {[%emt 0:00:34]} 40. Kc4 {[%emt 0:01:39]} Rg2 {[%emt 0:00:42]} 41. Rf1 {[%emt 0:05:27]} Ne2 {[%emt 0:02:12]} 42. e5 {[%emt 0:10:08]} Rg4+ {[%emt 0:04:22]} 43. Kc5 {[%emt 0:07:40]} Nd4 {[%emt 0:03:49]} 44. Ra6 {[%emt 0:00:57]} Nb3+ {[%emt 0:00:27]} 45. Kc6 {[%emt 0:03:22]} Rg5 {[%emt 0:01:34]} 46. Nc4 {[%emt 0:03:36]} Rg4 {[%emt 0:01:40]} 47. Kd6 {[%emt 0:01:05]} Re8 {[%emt 0:02:33]} 48. Ra7+ {[%emt 0:01:33]} Kh6 {[%emt 0:03:08]} 49. Nxa5 {[%emt 0:02:10]} Nd2 {[%emt 0:00:36]} 50. Rh1+ {[%emt 0:01:01]} Kg5 {[%emt 0:00:09]} 51. e6 {[%emt 0:00:35]} Ne4+ {[%emt 0:00:43]} 52. Kc6 {[%emt 0:01:24]} Rg2 {[%emt 0:01:18]} 53. b3 {[%emt 0:03:27]} Rd2 {[%emt 0:04:13]} 54. Nc4 {[%emt 0:01:57]} Rd4 {[%emt 0:06:14]} 55. Rg1+ {[%emt 0:01:16]} Kh6 {[%emt 0:00:41]} 56. Ne5 {[%emt 0:04:57]} Rc8+ {[%emt 0:02:57]} 57. Kd7 {[%emt 0:00:13]} Rc5 {[%emt 0:00:26]} 58. Nf7+ {[%emt 0:01:06]} Kg7 {[%emt 0:00:59]} 59. d6 {[%emt 0:00:24]} Rcd5 {[%emt 0:01:50]} 60. Ke8 {[%emt 0:01:11]} Kf6 {[%emt 0:05:36]} 61. Rf1+ {[%emt 0:01:35]} Rf5 {[%emt 0:00:26]} 62. Rxf5+ {[%emt 0:00:05]} gxf5 {[%emt 0:00:56]} 63. e7 {[%emt 0:01:23]} Ke6 {[%emt 0:00:30]} 64. Kf8 {[%emt 0:00:33]} Nf6 {[%emt 0:02:58]} 65. e8=Q+ {[%emt 0:00:22]} Nxe8 {[%emt 0:00:08]} 66. Kxe8 {[%emt 0:00:02]} Rg4 {[%emt 0:00:18]} 67. Re7+ {[%emt 0:00:40]} Kf6 {[%emt 0:00:15]} 68. Kf8 {[%emt 0:00:27]} 1-0